Cogmind - Beta 16 @@@ ROGUE MODE // 2026.02.03 @ 10:31:21 Player: jat Result: Destroyed by B-75 Beast with Magnetic Acceleration Cannon Performance ------------- Evolutions (3) 1500 Regions Visited (6) 1200 Robots Destroyed (68) 340 Value Destroyed (2088) 2088 Prototype IDs (4) 80 Alien Tech Used (0) 0 Bonus (400) 400 TOTAL SCORE: 5608 Bonus ------- High Alert Combat Kills 131 Follower Combat Kills 269 Cogmind --------- Core Integrity 0/700 Matter 300/300 Energy 99/100 System Corruption 6% Temperature Cool (0) Movement Core (50) Location -7/Lower Caves Parts ------- > --- POWER (2) -------- (None) > --- PROPULSION (3) --- (None) > --- UTILITY (5) ------ Improved Heat Sink Advanced Terrain Scan Processor Improved Targeting Computer Weapon Cycler > --- WEAPON (3) ------- (None) > --- INVENTORY (5) ---- Nuclear Core Compact Matter Pod (150) Makeshift Light Armor Plating Flak Cannon Mace Peak State ------------ > --- POWER ------------ Light Nuclear Core Improved Deuterium Engine > --- PROPULSION ------- VSS Leg VSS Leg VSS Leg > --- UTILITY ---------- Large Storage Unit Improved Terrain Scanner Advanced Terrain Scan Processor Improved Targeting Computer Advanced Targeting Computer > --- WEAPON ----------- Shock Rifle Gatling Laser Autogun > --- INVENTORY -------- VSS Leg VSS Leg VSS Leg VSS Leg Improved Heat Sink Large Battery Compact Matter Pod Improved Sensor Array Weapon Cycler Precision Grenade Launcher [Rating: 41] Favorites ----------- Power Light Nuclear Core Engine Improved Ion Engine Power Core Light Nuclear Core Propulsion VSS Leg Leg VSS Leg Wheel Wheel Flight Unit Flight Unit Utility Improved Targeting Computer Device Improved Terrain Scanner Storage Large Storage Unit Processor Improved Targeting Computer Weapon Autogun Energy Gun Medium Laser Energy Cannon Advanced Beam Cannon Ballistic Gun Autogun Ballistic Cannon Flak Cannon Launcher Precision Grenade Launcher Impact Weapon Mace Build | -11 -10 -10 -9 -8 -7 -7 ------- Run | Yrd Mat Min Mat Mat Fac Low Slots Evolved 6 | . . . 2 2 2 . Power 1 | . . . . . 1 . Propulsion 1 | . . . 1 . . . Utility 3 | . . . 1 2 . . Weapon 1 | . . . . . 1 . Parts Attached 64 | 5 5 6 12 12 20 4 Power 9 | 1 . 1 1 2 3 1 Engine 4 | 1 . 1 1 . 1 . Core 5 | . . . . 2 2 1 Reactor . | . . . . . . . Propulsion 18 | 2 . 2 3 3 7 1 Treads . | . . . . . . . Leg 13 | . . . 3 3 7 . Wheel 3 | 2 . . . . . 1 Hover . | . . . . . . . Flight 2 | . . 2 . . . . Utility 16 | . 3 1 3 4 4 1 Device 8 | . 2 . . 2 3 1 Storage 3 | . 1 . 1 1 . . Processor 5 | . . 1 2 1 1 . Hackware . | . . . . . . . Protection . | . . . . . . . Artifact . | . . . . . . . Weapon 21 | 2 2 2 5 3 6 1 Energy Gun 8 | 1 1 2 2 . 2 . Energy Cannon 1 | . . . 1 . . . Ballistic Gun 8 | 1 . . 2 3 2 . Ballistic Cannon 1 | . . . . . . 1 Launcher 2 | . 1 . . . 1 . Special Weapon . | . . . . . . . Impact Weapon 1 | . . . . . 1 . Slashing Weapon . | . . . . . . . Piercing Weapon . | . . . . . . . Special Melee Weapon . | . . . . . . . Unidentified Prototypes 4 | . . . 2 . 2 . Parts Lost 30 | . . 1 1 7 12 9 Power 6 | . . 1 . 1 4 . Propulsion 12 | . . . 1 3 3 5 Utility 3 | . . . . . . 3 Weapon 9 | . . . . 3 5 1 Highest Loss Streak 7 | . . 1 1 7 5 4 To Critical Strikes . | . . . . . . . Average Backups 5 | . 3 4 4 5 7 4 Power . | . . . . 1 . . Propulsion 1 | . . . . . 3 . Utility 2 | . . 1 1 1 3 3 Weapon 1 | . 2 3 2 2 . . Tool/Special . | . . . . . . . Unused Backups 8 | . 1 . 4 1 . 2 Power 1 | . . . . 1 . . Propulsion . | . . . . . . . Utility 3 | . 1 . . . . 2 Weapon 4 | . . . 4 . . . Tool/Special . | . . . . . . . Average Slot Usage (%) 81 | . 81 85 94 91 91 46 Engine 2 | . 14 2 11 . . . Core 5 | . . . . 6 10 2 Leg 14 | . . . 26 23 21 2 Wheel 5 | . 28 27 . . . 4 Device 10 | . 4 15 10 6 11 11 Storage 5 | . 5 . . 16 7 1 Processor 16 | . . 10 22 19 18 15 Energy Gun 10 | . 18 27 18 . 9 . Ballistic Gun 5 | . 3 . 2 16 7 . Impact Weapon 1 | . . . . . 1 4 Peak Build Rating 41 | 5 7 7 18 23 41 30 Average Rating 22 | 3 5 5 13 19 34 17 On Entrance 12 | . 5 7 7 16 20 30 Avg Prop Armor Cover (%) 3 | . . . 3 . . . Naked Turns . | . . . . . . . Heaviest Build 46 | 6 19 10 33 35 46 29 Greatest Support 36 | 20 20 20 36 36 36 36 Greatest Overweight (x) 8 | . . 1 . 8 8 7 Average Overweight (x) . | . . . . . . . Largest Inventory Capacity 15 | 5 10 5 15 15 15 15 Average Capacity 10 | 5 7 5 5 15 15 6 Most Carried 15 | 3 5 5 5 7 15 6 Average Carried 5 | 1 3 4 4 5 7 4 Final Capacity 15 | 5 5 5 15 15 15 5 Final Carried 6 | 1 5 5 5 3 6 5 Class Distribution -------------------- 68% | Mutant 25% | Gunner 3% | Scavenger-Mutant Dominant Class ---------------- Mutant | -10/Materials Mutant | -10/Mines Mutant | -9/Materials Mutant | -8/Materials Gunner | -7/Factory Mutant | -7/Lower Caves Resources | -11 -10 -10 -9 -8 -7 -7 ----------- Run | Yrd Mat Min Mat Mat Fac Low Matter Collected 1885 | 157 . 255 297 455 565 156 Remotely . | . . . . . . . Salvage Created 2110 | . 84 171 300 514 976 65 Parts 142 | . 3 20 21 30 67 1 Haulers Intercepted . | . . . . . . . Recyclers Shooed . | . . . . . . . Parts Field Recycled . | . . . . . . . Retrieved Matter . | . . . . . . . Parts Self-Destructed . | . . . . . . . Prevented 1 | . . . . . . 1 Parts Restored . | . . . . . . . Kills | -11 -10 -10 -9 -8 -7 -7 ------- Run | Yrd Mat Min Mat Mat Fac Low Combat Hostiles Destroyed 48 | . 2 10 6 15 14 1 Melee 1 | . . . . . 1 . Guns 38 | . 1 10 4 15 8 . AOE 7 | . . . 2 . 5 . Classes Destroyed 12 | . 1 2 2 1 5 1 Worker 3 | . . . . . 3 . Builder 7 | . . . 1 . 6 . Tunneler 2 | . . 1 . . 1 . Recycler 5 | . . . . . 5 . Mechanic 1 | . . . . . 1 . Watcher 2 | . . . . 1 1 . Swarmer 21 | . . 10 . 8 3 . Grunt 14 | . 2 . 4 5 3 . Brawler 1 | . . . . . 1 . Sentry 8 | . . . 2 2 4 . Hunter 1 | . . . . . . 1 Programmer 3 | . . . . . 3 . Decomposer 1 | . . . . . . 1 Best Kill Streak 12 | . 1 3 5 6 12 1 Combat Bots Only 5 | . 1 3 4 5 5 1 Max Kills in Single Turn 7 | . 1 2 2 1 7 1 Gunslinging 1 | . . 1 . . . . Exploded 3 | . . . 2 . 3 . Melee 1 | . . . . . 1 . Uniques/NPCs Destroyed . | . . . . . . . Combat | -11 -10 -10 -9 -8 -7 -7 -------- Run | Yrd Mat Min Mat Mat Fac Low Hostile Shots Fired 461 | . 11 42 49 98 192 69 Missed 168 | . 8 14 21 33 67 25 Hits 293 | . 3 28 28 65 125 44 Melee 2 | . . . . . 2 . Projectile 291 | . 3 28 28 65 123 44 Critical Strikes 8 | . . . 1 1 5 1 Damage Taken 4087 | . 59 220 357 907 1913 631 Core 973 | . 23 75 39 118 418 300 Absorbed by Shields . | . . . . . . . Regen/Repaired (Parts) 186 | . . . 65 . 121 . Core Remaining (%) 82 | 100 . 60 90 78 . . Volleys Fired 147 | . 16 21 18 47 45 . Largest 3 | . 2 2 2 2 3 . Hottest 158 | . 100 100 100 46 158 . Shots Fired 296 | . 24 43 36 92 100 1 Gun 283 | . 19 43 36 92 93 . Cannon . | . . . . . . . Launcher 13 | . 5 . . . 7 1 Special . | . . . . . . . Kinetic 133 | . 1 . . 92 40 . Thermal 115 | . 18 43 28 . 26 . Explosive 13 | . 5 . . . 7 1 Electromagnetic 35 | . . . 8 . 27 . Robot Hit Streak 14 | . 3 3 8 10 14 3 Robot Miss Streak 5 | . 2 5 4 2 5 . Penetration Max 1 | . . . . . 1 . Secondary Targets 7 | . . 1 1 4 1 . Max Gunslinging Chain 1 | . . 1 1 1 1 . Shots Hit Robots 190 | . 12 19 23 68 65 3 Core Hits 111 | . 3 11 12 28 56 1 Critical Kills 1 | . . . . 1 . . Critical Parts Destroyed 2 | . . . . 1 . 1 Critical Strikes 7 | . . 1 3 2 . 1 Burn 4 | . . 1 3 . . . Destroy 2 | . . . . 2 . . Smash 1 | . . . . . . 1 Melee Attacks 4 | . . . . . 2 2 Impact 4 | . . . . . 2 2 Slashing . | . . . . . . . Piercing . | . . . . . . . Sneak Attacks . | . . . . . . . Combat Hostiles . | . . . . . . . Follow-up Attacks . | . . . . . . . Damage Inflicted 5313 | . 147 251 397 1019 3400 99 Guns 2972 | . 147 251 341 1019 1214 . Cannons . | . . . . . . . Explosions 2230 | . . . 56 . 2136 38 Melee 95 | . . . . . 34 61 Ramming 16 | . . . . . 16 . Kinetic 1440 | . 10 . . 1019 411 . Thermal 2048 | . 137 251 269 . 1391 . Explosive 1304 | . . . . . 1266 38 Electromagnetic 410 | . . . 128 . 282 . Impact 95 | . . . . . 34 61 Slashing . | . . . . . . . Piercing . | . . . . . . . Highest Corruption 6 | . 1 1 3 . 6 6 Average Corruption 3 | . 1 1 2 . 3 6 Corruption Purged . | . . . . . . . Corruption Blocked . | . . . . . . . Effects 63 | . 1 9 5 . 27 21 Message Errors 18 | . . 2 1 . 8 7 Matter Fused 15 | . 1 1 2 . 9 2 Heat Flow Errors 6 | . . 1 1 . 2 2 Energy Discharges 7 | . . 1 1 . 2 3 Parts Fused 1 | . . . . . 1 . Data Loss (minor) 9 | . . 2 . . 5 2 Data Loss (major) 4 | . . 1 . . . 3 Misfires 2 | . . 1 . . . 1 Alerts 1 | . . . . . . 1 Overload Shots . | . . . . . . . Overflow Damage 437 | . . . . . 394 43 Projectiles . | . . . . . . . Explosions 404 | . . . . . 394 10 Melee 33 | . . . . . . 33 Knockbacks 1 | . . . . . . 1 Impact 1 | . . . . . . 1 Kinetic . | . . . . . . . Secondary . | . . . . . . . Self-Inflicted Damage 304 | . 13 . 35 . 233 23 Shots 6 | . 1 . 1 . 3 1 Rammed . | . . . . . . . Targets Rammed 1 | . . . . . 1 . Kicked 1 | . . . . . 1 . Crushed . | . . . . . . . Highest Temperature 396 | . 285 160 158 35 396 255 Average Temperature 83 | . 117 35 17 14 117 111 Received Heat Transfer 909 | . 18 . 108 414 333 36 Effects 6 | . 1 . . . 5 . Shutdowns 1 | . . . . . 1 . Energy Bleed 1 | . . . . . 1 . Interference 4 | . 1 . . . 3 . Siege Activations . | . . . . . . . Martial Activations . | . . . . . . . Shielding Activations . | . . . . . . . Robots Disrupted . | . . . . . . . Combat Hostiles . | . . . . . . . Robots Corrupted 1 | . . . . . . 1 Combat Hostiles 1 | . . . . . . 1 Parts Fried . | . . . . . . . Impact Corruptions 1 | . . . . . . 1 Robots Melted 1 | . 1 . . . . . Combat Hostiles 1 | . 1 . . . . . Parts Melted 6 | . 3 1 1 . 1 . Heat Transferred 3822 | . 407 814 951 . 1650 . Parts Sabotaged . | . . . . . . . Parts Stolen . | . . . . . . . Parts Stripped . | . . . . . . . Power Chain Reactions 2 | . . . 1 . 1 . Alert | -11 -10 -10 -9 -8 -7 -7 ------- Run | Yrd Mat Min Mat Mat Fac Low Maximum Alert Level 3 | . . . . 1 3 . Low Security (%) 70 | 100 100 100 100 86 46 . Level 1 4 | . . . . 13 5 . Level 2 19 | . . . . . 37 . Level 3 5 | . . . . . 10 . Level 4 . | . . . . . . . Level 5 . | . . . . . . . High Security . | . . . . . . . Max Security . | . . . . . . . Peak Influence 821 | . 50 109 180 232 821 . Initial 101 | . . 9 27 57 101 . Average 181 | . 23 41 79 152 276 . Influence Increases 2515 | . 74 276 363 487 1270 45 Destroy 0b10 Robot/C 1180 | . 40 200 240 340 340 20 Destroy 0b10 Robot/NC 100 | . . 5 5 5 85 . Destroy Leader 284 | . 20 30 60 72 92 10 Allied During Kill 64 | . . 11 37 12 4 . Successful Hack 29 | . . . 3 13 13 . Disable Machine 480 | . . . 15 . 465 . Anti-Garrison Action 150 | . . . . . 150 . Destroy Structure 138 | . 14 . 3 . 121 . Lose Combat Pursuer 90 | . . 30 . 45 . 15 Influence Decreases 2406 | . 50 227 298 401 673 757 Entered New Map 570 | . . 15 46 81 123 305 Time Decay 1486 | . 50 202 222 230 420 362 Lost Part 290 | . . 10 10 70 110 90 Lost Ally 60 | . . . 20 20 20 . Squads Dispatched 12 | . 2 . 2 1 7 . Investigation 2 | . . . 1 1 . . Extermination 4 | . . . . . 4 . Reinforcement 4 | . 2 . 1 . 1 . Assault 2 | . . . . . 2 . Garrison . | . . . . . . . Intercept . | . . . . . . . Searches Triggered . | . . . . . . . Construction Impeded 1 | . . . . . 1 . Haulers Reinforced . | . . . . . . . Active Scanning Responses . | . . . . . . . Cargo Convoy Interrupts . | . . . . . . . Stealth | -11 -10 -10 -9 -8 -7 -7 --------- Run | Yrd Mat Min Mat Mat Fac Low Distress Signals 2 | . . . 1 1 . . Communications Jammed . | . . . . . . . Distress Signals . | . . . . . . . Times Spotted 78 | . 4 12 14 24 21 3 Peak Tracking Total 7 | . 1 3 6 7 5 1 Tactical Retreats 3 | . . 1 . 1 . 1 Traps | -11 -10 -10 -9 -8 -7 -7 ------- Run | Yrd Mat Min Mat Mat Fac Low Traps Triggered 10 | . 1 . 4 . 5 . Indirectly . | . . . . . . . Trap Hack Attempts . | . . . . . . . Triggered . | . . . . . . . Disarmed . | . . . . . . . Reprogrammed . | . . . . . . . Reused . | . . . . . . . Traps Extracted . | . . . . . . . Installed . | . . . . . . . Triggered . | . . . . . . . Machines | -11 -10 -10 -9 -8 -7 -7 ---------- Run | Yrd Mat Min Mat Mat Fac Low Machines Disabled 33 | . . . 1 . 32 . Max in Single Turn 8 | . . . 1 . 8 . Garrison Access 1 | . . . . . 1 . Machines Repaired . | . . . . . . . Machines Dismantled . | . . . . . . . Machines Sabotaged . | . . . . . . . Overloaded Fab Kills . | . . . . . . . Hacking | -11 -10 -10 -9 -8 -7 -7 --------- Run | Yrd Mat Min Mat Mat Fac Low Machines Accessed 13 | . 1 . 4 2 6 . Terminals 7 | . 1 . 2 2 2 . Fabricators 2 | . . . . . 2 . Repair Stations 2 | . . . 1 . 1 . Recycling Units 2 | . . . 1 . 1 . Scanalyzers . | . . . . . . . Garrison Access . | . . . . . . . Total Hacks 31 | . 3 . 7 8 13 . Successful 21 | . 1 . 5 5 10 . Failed 10 | . 2 . 2 3 3 . Catastrophic 1 | . . . 1 . . . Database Lockouts . | . . . . . . . Manual . | . . . . . . . Terminals 17 | . 3 . 4 8 2 . Fabricators 6 | . . . . . 6 . Repair Stations 6 | . . . 2 . 4 . Recycling Units 2 | . . . 1 . 1 . Scanalyzers . | . . . . . . . Garrison Access . | . . . . . . . Terminal Hacks 10 | . 1 . 2 5 2 . Record 1 | . . . 1 . . . Robot Analysis 1 | . . . 1 . . . Open DSF 2 | . . . . . 2 . Emergency Access Points 1 | . . . . 1 . . Locate Traps 2 | . . . . 2 . . Transport Status 1 | . . . . 1 . . Hauler Manifests 1 | . . . . 1 . . Registered Components 1 | . 1 . . . . . Fabricator Hacks 3 | . . . . . 3 . Network Status 2 | . . . . . 2 . Build 1 | . . . . . 1 . Repair Station Hacks 6 | . . . 2 . 4 . Scan Component 3 | . . . 1 . 2 . Repair 3 | . . . 1 . 2 . Recycling Unit Hacks 2 | . . . 1 . 1 . Report Inventory 2 | . . . 1 . 1 . Scanalyzer . | . . . . . . . Garrison Access Hacks . | . . . . . . . Unauthorized Hacks . | . . . . . . . Terminals . | . . . . . . . Fabricators . | . . . . . . . Repair Stations . | . . . . . . . Recycling Units . | . . . . . . . Scanalyzers . | . . . . . . . Garrison Access . | . . . . . . . Data Cores Recovered . | . . . . . . . Used . | . . . . . . . Hacking Detections 5 | . . . 3 1 1 . Full Trace Events 1 | . . . . 1 . . Feedback Events . | . . . . . . . Feedback Blocked . | . . . . . . . Robot Schematics Acquired . | . . . . . . . Robots Built 2 | . . . . . 2 . Authchips . | . . . . . . . Time 116 | . . . . . 116 . Total Robot Build Rating 6 | . . . . . 6 . Part Schematics Acquired . | . . . . . . . Parts Built . | . . . . . . . Authchips . | . . . . . . . Time . | . . . . . . . Total Part Build Rating . | . . . . . . . Part Studies Acquired . | . . . . . . . Parts Repaired 3 | . . . 1 . 2 . Time 96 | . . . 26 . 70 . Parts Recycled . | . . . . . . . Recycled Matter . | . . . . . . . Retrieved Matter . | . . . . . . . Retrieved Components . | . . . . . . . Parts Scanalyzed . | . . . . . . . Part Schematics Acquired . | . . . . . . . Parts Damaged . | . . . . . . . Bothacking | -11 -10 -10 -9 -8 -7 -7 ------------ Run | Yrd Mat Min Mat Mat Fac Low Used RIF Installer . | . . . . . . . Robots Hacked . | . . . . . . . Non-combat . | . . . . . . . Combat . | . . . . . . . Robot Hacks Applied . | . . . . . . . Relay Couplers Released 2 | . . . . . 2 . Machine Destruction 2 | . . . . . 2 . Fabnet Peak Effective % . | . . . . . . . Robots Rewired . | . . . . . . . Allies Hacked . | . . . . . . . Hacks Repelled . | . . . . . . . Allies | -11 -10 -10 -9 -8 -7 -7 -------- Run | Yrd Mat Min Mat Mat Fac Low Total Allies 5 | . . 3 . . 2 . Largest Group 3 | . . 3 3 1 2 . Highest-Rated Group 48 | . . 40 40 16 48 . Highest-Rated Ally 24 | . . 16 16 16 24 . Total Orders . | . . . . . . . Ally Attacks 51 | . . . 33 10 8 . Total Damage 688 | . . . 387 98 203 . Kills 12 | . . . 6 2 4 . Allies Corrupted . | . . . . . . . Allies Melted . | . . . . . . . Intel | -11 -10 -10 -9 -8 -7 -7 ------- Run | Yrd Mat Min Mat Mat Fac Low Active Infowar (turns) 1970 | . 23 67 . 289 1531 60 Sensors 1020 | . . . . . 1018 2 Terrain 1877 | . . . . 289 1531 57 Structural 90 | . 23 67 . . . . Traps 1 | . . . . . . 1 Robot Analysis Total 1 | . . . 1 . . . Derelict Logs Recovered 3 | . . 1 . . . 2 Drone Launches . | . . . . . . . Drone Recoveries . | . . . . . . . Exploration | -11 -10 -10 -9 -8 -7 -7 ------------- Run | Yrd Mat Min Mat Mat Fac Low Turns Passed 4421 | 36 153 594 474 491 1836 837 Spaces Moved 3317 | 34 112 644 331 248 957 991 Core 261 | 6 . 1 . 3 4 247 Treads . | . . . . . . . Legs 1564 | . . . 283 245 953 83 Wheels 1438 | 28 112 637 . . . 661 Hover . | . . . . . . . Flight 54 | . . 6 48 . . . Fastest Speed 37 | 50 80 37 37 120 90 50 Average Speed 109 | 74 80 79 107 139 158 78 Slowest Speed 450 | 80 80 120 120 450 450 400 Overloaded Moves . | . . . . . . . Propulsion Burnouts . | . . . . . . . Robots Hopped . | . . . . . . . Potential Cave-ins 12 | . 4 . . . 8 . Cave-ins Triggered 1 | . . . . . 1 . Exploration Rate (%) 39 | 3 29 81 38 29 24 74 Regions Visited 6 Branch Regions 2 Pre-discovered Areas 1 | . . 1 . . . . Known Exits Taken 2 | . . 1 1 . . . Unknown Exits Taken 4 | 1 1 . . 1 1 . Scrap Searched 4 | . . 2 . . . 2 Spaces Dug 52 | . 23 . . . 29 . Terrain Destroyed 187 | . 31 . 2 . 141 13 Melee . | . . . . . . . Projectile 1 | . . . . . 1 . AOE 186 | . 31 . 2 . 140 13 Terrain Rammed . | . . . . . . . Walls Destroyed . | . . . . . . . Machines Disabled . | . . . . . . . Actions | -11 -10 -10 -9 -8 -7 -7 --------- Run | Yrd Mat Min Mat Mat Fac Low Total 3859 | 44 150 681 415 322 1194 1053 Wait 183 | . 8 4 26 . 104 41 Move 3310 | 33 111 643 330 247 955 991 Hop . | . . . . . . . Pick Up 73 | 6 8 2 13 11 29 4 Fast Attach 13 | . . 4 6 . . 3 Attach 54 | 5 2 1 4 11 26 5 Detach 6 | . . . . 1 3 2 Swap 22 | . 3 1 3 1 14 . Drop 35 | . 2 5 15 4 4 5 Fire 147 | . 16 21 18 47 45 . Melee 4 | . . . . . 2 2 Ram . | . . . . . . . Kick 1 | . . . . . 1 . Crush . | . . . . . . . Escape Stasis 11 | . . . . . 11 . Rewire . | . . . . . . . Trap . | . . . . . . . Miscellaneous . | . . . . . . . Route ------- -11/Scrapyard -10/Materials (discovered 2 exits: [*Min x2]) -10/Mines -9/Materials -8/Materials -7/Factory (discovered 2 exits: [*Sto] / [*Low]) -7/Lower Caves History --------- Turn | Location | Event 6 | -11/Scrapyard | Discovered new exit (range 16) 37 | -11/Scrapyard | Entered Materials 110 | -10/Materials | Discovered new exit (range 11) 174 | -10/Materials | Discovered new exit (range 12) 190 | -10/Materials | Entered Mines 221 | -10/Mines | Met a Derelict bent on vengeance 314 | -10/Mines | Learned location of Zion (-6) 316 | -10/Mines | Build established: Mutant 422 | -10/Mines | Assisted by bots powering up and referring to "LRC-V3" 584 | -10/Mines | Received a Rocket Launcher from a helpful Derelict 769 | -10/Mines | Discovered new exit (range 4) 781 | -10/Mines | Identified exit to Materials 784 | -10/Mines | Entered Materials 784 | -9/Materials | Accompanied by 3 allies 784 | -9/Materials | Evolved 2 slots: Propulsion x1, Utility x1 991 | -9/Materials | Repaired Med. Laser 1218 | -9/Materials | Discovered new exit (range 16) 1257 | -9/Materials | Identified exit to Materials 1258 | -9/Materials | Entered another Materials area 1258 | -8/Materials | Accompanied by 1 ally 1258 | -8/Materials | Evolved 2 slots: Utility x2 1634 | -8/Materials | Lost 7 parts (1p3n3w) 1734 | -8/Materials | Discovered new exit (range 9) 1749 | -8/Materials | Entered Factory 1749 | -7/Factory | Evolved 2 slots: Power x1, Weapon x1 1778 | -7/Factory | Discovered new exit (range 10) 2450 | -7/Factory | Build established: Gunner 2857 | -7/Factory | Fabricated X-57 Shotgunner? 2875 | -7/Factory | Repaired Shock Rifle 2909 | -7/Factory | Repaired Autogun 3131 | -7/Factory | Crushed by falling debris 3301 | -7/Factory | Lost 4 parts (1p3w) 3392 | -7/Factory | Core integrity fell below 50% 3424 | -7/Factory | Lost 5 parts (1p3n1w) 3565 | -7/Factory | Build established: Mutant 3573 | -7/Factory | Discovered new exit (range 10) 3585 | -7/Factory | Entered Lower Caves 3664 | -7/Lower Caves | Lost 3 parts (1n1u1w) 3722 | -7/Lower Caves | Spotted B-75 Beast 3768 | -7/Lower Caves | Lost 4 parts (2n2u) 3845 | -7/Lower Caves | Learned Factory garrison access intel 3876 | -7/Lower Caves | Encountered a Warlord checkpoint 4086 | -7/Lower Caves | Learned Factory trap positions 4370 | -7/Lower Caves | Core integrity fell below 20% 4422 | -7/Lower Caves | Destroyed by B-75 Beast with Magnetic Acceleration Cannon Last Messages --------------- 04098_ Acquired Mace. 04099_ Dropped Lrg. Battery. 04100_ Extracted 112 energy. 04101_ Acquired Trap Scanner. 04102_ Dropped Trap Scanner. 04103_ Acquired 20 matter. 04147_ System corrupted: Substantial component data lost. 04162_ System corrupted: IFF burst signal emitted. 04178_ YEN PRGMRUOHQ CXUOS#/RNHJVL>C VZ 04201_ System corrupted: Heat flow error (+296). 04245_ A>VK Q/ZNWZR7 GR/YZOVTQLVJ 04268_ System corrupted: Component data lost. 04300_ System corrupted: Energy discharge (-79). 04335_ MG5MZBKCZ4KIOGL9FWQETBWDC&=T 04354_ KO 1LMA3TKMFVC7I|6N5P40SIP 04369_ Knocked back. 04390_ Wheel destroyed. 04417_ Dropped Lrg. Storage Unit. Map ----- +----------------------------------------------------+ | ???????????????????????????????## #######??###? | | ??????????????????????????????## ##?# ## | | ?????????????????????????###### ### # | | ?????????????????????????# ##### | | ?????????????????????????## #???## | | ??????????????????????????## ##????##### | | ???????????????????????????## ##??????#??## | | ?????????????????????????#### ######????#?## | | ?????????????????????????# ## ####???### | | ?????????????????????????# ## "#??##?### | | ????????????????????????## ##### ####??### | | ???????????????????????## ##???## #????### | | ???????????????????????# % "#???## % ###### | | ?????????????? ??????# "#####" #?# | | ???????????? ?????# ### #" #?## ### | | ???????????? #????#" ## ##?##### | | ???????????# #####" ### ####?### | | ???????????# ;; ###% ####### | | ??????????# #### ! ##??# | | ?????????? #?# ###??# | | ?????????? ?# BB ##???## ### | | ?????????# ##### BB##???#?# ### | | ????????? #### ;#?????## ### | | ??????????? % ;##; ##????## ## | | ????????????????# ;; ##??### | | ????????????????# @ #### | | ????????? ###;%% #?# | | ???????? ????????### ##??# | | ??????????????????????## ;##?## | | ?????????????????????## # ;### #### ### | | ????????????????????## % # ;##### ##? | | ????????????????????# %# ##?## #### | | ????????????????????#% # #### | | ????????????????????# ## ####### | | ????????????????##### ##### ##?????###### | | ???????????????## ## ##?# ########??#?######?# | | #??????????????# % ## ##?????????#????#???# | | ##?????????????## %% % ###??????????##??###?## | | ##?????????#???## ##??????????#????#?###?# | | # ##??????? ? #??## ####??????????????#?#????## | | ##????? # ##?### # #???????????????#?##??#?##? | | #????# #?# #??????????????????##??#??# | | #### #????# #??????????????????#?????#? | | ## # #?????# %#####??????????????????????#??# | | # ##?????#% ##?????????????????????#???#??# | | # ##???####= ##??????????????????????#????? | | # ##????# #?????####??????????????#??#? | | # ##?????# #?????# #???????????????#??# | | ##??????# ##?????# #??????????????????? | | ######???# #?????## #??????????????????? | +----------------------------------------------------+ Best States ------------- Heat Dissipation 48 Energy Generation 25 Energy Capacity 420 Matter Stores 300 Matter Capacity 300 Sight Range 16 Robot Scan Range 15 Terrain Scan Range 16 Terrain Scan Density 210 Weapon Cycling 15 Evasion (%) 62 Targeting Accuracy 14 Item Schematics ----------------- None Robot Schematics ------------------ None Fabricated ------------ X-57 Shotgunner | x2 | -7/Factory | Preloaded Repaired ---------- Med. Laser | 7% | -9/Materials Shock Rifle | 12% | -7/Factory Autogun | 36% | -7/Factory Studied --------- None Alien Tech Used ----------------- None Achievements -------------- Maybe Next Time I'll Detach My Launcher My Command Is Your Wish Omniscient Cartographer Sprinter Unlikely Earthworm Challenges ------------ None Game ------ Seed BottomlessImpactFrame Manual? 0 Play Time 00:45:49 Cumulative 15.5 hours Start 2026.02.02 @ 21:01:06 End 2026.02.03 @ 10:31:21 Sessions 3 Manual Loads 0 Difficulty Rogue Special Mode None Game No. 11 Rogue 6 Adventurer 5 Explorer 0 Win Type - Total 0 Types 0/0/0/0/0/0/0/0/0/0 Lore% 13 Gallery% 19 Achievement% 18 Wizard Run 0 Options --------- Layout 1 ASCII 0 Keyboard 0 Movement Mouse Keybinds 0 Fullscreen 1 Font 24/Smallcaps Map View 50x35 Zoom Use 0% Tactical HUD 1 Map Filters NONE Filters NONE Steam 1 RUN: a678be85-66f1-4627-b080-344845ed783c